bitfinex-derivatives/quotes_SOLF0:USTF0_20251201
["timestamp","ask_amount","ask_price","bid_price","bid_amount"]
[1764613734598,119.95485491,124.87,124.79,9.91429636]
[1764613734803,3.0154563,124.86,124.79,9.91429636]
[1764613734998,116.93939861,124.87,124.78,9.91429636]
[1764613734999,3.0154563,124.85,124.78,9.91429636]
[1764613735196,3.0154563,124.84,124.8,7.212]
[1764613735396,0.05327075,124.83,124.81,0.06088793]
[1764613741499,0.05327075,124.83,124.81,7.27188793]
[1764613741699,0.05327075,124.83,124.81,0.06088793]
[1764613742199,0.05327075,124.83,124.82,7.2108]
[1764613745204,0.05327075,124.83,124.81,0.06088793]
[1764613746799,84.0,124.91,124.83,112.1602]
[1764613747000,3.00720925,124.9,124.87,7.2078]
[1764613747196,3.00720925,124.89,124.87,7.2078]
[1764613747400,3.00720925,124.91,124.87,7.2078]
[1764613747599,3.00720925,124.9,124.87,7.2078]
[1764613747798,0.05901258,124.9,124.87,7.26176657]
[1764613748104,3.06622183,124.9,124.87,7.26176657]
[1764613748407,3.06617014,124.9,124.87,7.26176657]
[1764613750097,10.27287014,124.9,124.87,0.05396657]
[1764613750304,7.26571258,124.9,124.87,0.05396657]
[1764613750702,10.27287014,124.9,124.87,0.05396657]
[1764613750898,7.26571258,124.9,124.87,0.05396657]
[1764613751098,10.27287014,124.9,124.87,0.05396657]
[1764613751299,7.26571258,124.9,124.87,0.05396657]
[1764613751505,10.21395756,124.89,124.87,0.05396657]
[1764613751703,3.00715756,124.89,124.87,0.05396657]
[1764613753412,7.2074,124.88,124.87,0.05396657]
[1764613753802,112.1258,124.87,124.78,9.91429636]
[1764613754100,3.08074679,124.85,124.77,125.20034315]
[1764613754403,6.08790435,124.85,124.77,125.20034315]
[1764613754605,3.08074679,124.85,124.77,125.20034315]
[1764613754806,0.05347251,124.82,124.8,0.06142592]
[1764613756318,3.06063007,124.82,124.8,0.06142592]
[1764613757408,10.27163007,124.82,124.8,0.06142592]
[1764613759214,7.26447251,124.82,124.8,0.06142592]
[1764613761204,10.29244679,124.81,124.75,7.2144]
[1764613761413,13.29960435,124.81,124.75,7.2144]
[1764613762218,13.29919973,124.81,124.75,7.2144]
[1764613762420,0.05270951,124.79,124.77,0.05198405]
[1764613763321,3.1334563,124.79,124.77,0.05198405]
[1764613763709,3.1334563,124.79,124.73,7.216]
[1764613763914,0.05270951,124.79,124.74,68.9]
[1764613764109,0.05270951,124.79,124.75,3.08074679]
[1764613765205,0.05270951,124.79,124.77,7.2137]
[1764613766823,0.05270951,124.79,124.78,7.2131]
[1764613767013,0.05270951,124.79,124.74,181.1386]
[1764613767219,0.05270951,124.79,124.75,3.08074679]
[1764613767421,0.05270951,124.79,124.75,71.98074679]
[1764613768425,0.05270951,124.79,124.76,7.214]
[1764613769921,0.05270951,124.79,124.77,7.2137]
[1764613770128,0.05270951,124.79,124.75,3.08074679]
[1764613770328,0.05270951,124.79,124.75,7.2143]
[1764613771827,0.05270951,124.79,124.77,7.2135]
[1764613772025,0.05270951,124.79,124.77,68.9]
[1764613772523,0.05270951,124.79,124.78,7.2131]
[1764613775022,0.05270951,124.79,124.73,9.91429636]
[1764613775329,0.05270951,124.79,124.74,68.9]
[1764613775521,0.05270951,124.79,124.75,7.2143]
[1764613775827,0.05270951,124.79,124.74,68.9]
[1764613776919,0.05270951,124.79,124.77,7.2137]
[1764613777227,0.05270951,124.79,124.75,115.31054679]
[1764613777720,0.05270951,124.79,124.76,71.98074679]
[1764613778326,0.05270951,124.79,124.77,7.2132]
[1764613779928,0.05270951,124.79,124.78,7.2131]
[1764613791842,0.05270951,124.79,124.78,76.1131]
[1764613792341,7.2096,124.85,124.8,224.3622]
[1764613792342,3.00649486,124.85,124.8,224.3622]
[1764613792541,3.00649486,124.87,124.81,68.9]
[1764613792734,3.00649486,124.86,124.82,112.1678]
[1764613792934,3.00649486,124.87,124.84,7.2093]
[1764613793136,3.00649486,124.86,124.84,7.2093]
[1764613793335,0.06130076,124.86,124.84,0.05434126]
[1764613793541,7.74854241,124.86,124.84,0.05434126]
[1764613793734,4.74204755,124.86,124.84,0.05434126]
[1764613793930,14.95724241,124.86,124.84,0.05434126]
[1764613794136,11.95074755,124.86,124.84,0.05434126]
[1764613794336,11.87649562,124.86,124.84,0.05434126]
[1764613794537,3.00649486,124.85,124.84,0.05434126]
[1764613797538,3.00649486,124.85,124.84,7.26404126]
[1764613797844,3.08074679,124.9,124.84,0.05434126]
[1764613798440,3.08074679,124.9,124.87,7.2079]
[1764613798948,3.13228723,124.9,124.87,7.2585789]
[1764613799744,0.05154044,124.9,124.87,7.2585789]
[1764613799937,0.05154044,124.9,124.87,0.0506789]
[1764613800341,0.05154044,124.9,124.87,112.1727789]
[1764613800542,0.05154044,124.9,124.88,3.08074679]
[1764613800848,0.05154044,124.9,124.89,7.2068]
[1764613802746,7.2034,124.95,124.91,7.2056]
[1764613803047,91.2022,124.97,124.91,7.2056]
[1764613803645,0.05638565,124.95,124.91,7.2056]
[1764613803853,0.05638565,124.95,124.93,0.05688439]
[1764613804247,0.05638565,124.95,124.86,112.131]
[1764613804248,112.0729,124.93,124.83,122.07139636]
[1764613804452,125.47114926,124.92,124.82,112.163]
[1764613805454,0.05136548,124.88,124.86,0.05496986]
[1764613809455,0.05136548,124.88,124.86,7.26346986]
[1764613809759,0.05136548,124.88,124.86,0.05496986]
[1764613810354,1.65136548,124.88,124.78,68.86]
[1764613810544,2.98764767,124.88,124.78,68.86]
[1764613810756,7.2088,124.86,124.81,7.2113]
[1764613811059,2.98764767,124.88,124.81,7.2113]
[1764613811250,0.05701678,124.86,124.83,0.05532821]
[1764613813366,0.05701678,124.86,124.84,7.2096]
[1764613814360,0.05701678,124.86,124.83,0.05532821]
[1764613816755,0.05701678,124.86,124.83,7.26532821]
[1764613817860,0.05701678,124.86,124.84,7.2095]
[1764613823972,0.05701678,124.86,124.85,68.86]
[1764613827173,0.05701678,124.86,124.85,76.0691]
[1764613828477,0.05701678,124.86,124.85,7.2091]
[1764613829075,0.05701678,124.86,124.83,7.26522821]
[1764613829283,0.05701678,124.86,124.83,0.05532821]
[1764613829779,3.04466445,124.86,124.83,0.05532821]
[1764613829971,0.05701678,124.86,124.83,0.05532821]
[1764613830372,3.04466445,124.86,124.83,0.05532821]
[1764613830777,0.05701678,124.86,124.83,7.26562821]
[1764613831172,3.04466445,124.86,124.83,7.26562821]
[1764613831370,0.05701678,124.86,124.83,7.26562821]
[1764613831572,3.10368705,124.86,124.83,7.26562821]
[1764613831768,0.05701678,124.86,124.83,7.26562821]
[1764613832078,3.10368705,124.86,124.83,7.26562821]
[1764613832379,0.05701678,124.86,124.83,7.26562821]
[1764613832680,3.10368705,124.86,124.83,7.26562821]
[1764613833180,0.05701678,124.86,124.83,7.26562821]
[1764613833378,0.05701678,124.86,124.84,7.2096]
[1764613833575,0.05701678,124.86,124.83,0.05532821]
[1764613833576,3.10368705,124.86,124.83,0.05532821]
[1764613833777,0.05701678,124.86,124.83,112.21182821]
[1764613834089,3.04667027,124.92,124.85,224.274]
[1764613834274,84.0,124.93,124.84,68.86]
[1764613834275,3.04667027,124.91,124.84,68.86]
[1764613834473,10.25307027,124.9,124.85,7.2085]
[1764613834673,3.04667027,124.89,124.83,68.86]
[1764613834874,3.04667027,124.88,124.83,68.86]
[1764613835073,0.05784399,124.87,124.84,0.05618542]
[1764613835470,0.05784399,124.87,124.86,7.2085]
[1764613840681,0.05784399,124.87,124.86,76.0485]
[1764613844088,0.05784399,124.87,124.84,7.26548542]
[1764613844283,3.0517618,124.86,124.84,0.05618542]
[1764613844482,3.05199371,124.85,124.84,0.05618542]
[1764613846284,10.26109371,124.85,124.84,0.05618542]
[1764613848093,10.26109371,124.85,124.8,7.2117]
[1764613848285,3.05199371,124.84,124.8,7.2117]
[1764613848484,3.05199371,124.83,124.8,7.2117]
[1764613848793,7.2091,124.85,124.8,7.2117]
[1764613848983,3.09763002,124.84,124.81,0.05615957]
[1764613849184,3.04515618,124.83,124.81,0.05615957]
[1764613849484,0.05247384,124.84,124.81,0.05615957]
[1764613849685,3.04646135,124.83,124.81,0.05615957]
[1764613849885,0.05247384,124.84,124.81,0.05615957]
[1764613850095,3.04646135,124.83,124.81,0.05615957]
[1764613850394,0.05247384,124.84,124.81,0.05615957]
[1764613850694,3.04503136,124.83,124.81,0.05615957]
[1764613850894,0.05247384,124.84,124.81,0.05615957]
[1764613851095,3.0442198,124.83,124.81,0.05615957]
[1764613851281,0.05247384,124.84,124.81,0.05615957]
[1764613851486,3.04291713,124.83,124.81,0.05615957]
[1764613851698,0.05247384,124.84,124.81,0.05615957]
[1764613851897,3.04291538,124.83,124.81,0.05615957]
[1764613852195,0.05247384,124.84,124.81,0.05615957]
[1764613852395,3.04327683,124.83,124.81,0.05615957]
[1764613852695,0.05247384,124.84,124.81,0.05615957]
[1764613852896,3.04370819,124.83,124.81,0.05615957]
[1764613853106,0.05247384,124.84,124.81,0.05615957]
[1764613853296,3.04404779,124.83,124.81,0.05615957]
[1764613853595,3.04404779,124.82,124.81,0.05615957]
[1764613854186,3.04314929,124.82,124.76,9.91429636]
[1764613854493,84.0,124.83,124.76,9.91429636]
[1764613854694,3.04314668,124.82,124.76,9.91429636]
[1764613854997,84.0,124.83,124.76,9.91429636]
[1764613855192,0.05526114,124.81,124.76,9.91429636]
[1764613855493,0.05526114,124.81,124.74,9.91429636]
[1764613855698,3.04116249,124.8,124.74,9.91429636]
[1764613855994,0.053559,124.78,124.74,9.91429636]
[1764613856589,0.053559,124.78,124.73,78.77429636]
[1764613856785,0.053559,124.78,124.73,85.99009636]
[1764613856983,0.053559,124.78,124.73,68.86]
[1764613857392,3.08890981,124.78,124.73,68.86]
[1764613857589,112.261759,124.78,124.7,9.91429636]
[1764613857788,112.261759,124.78,124.69,68.86]
[1764613857789,0.06101216,124.75,124.69,78.77429636]
[1764613858193,0.06101216,124.75,124.69,68.86]
[1764613859098,0.06101216,124.75,124.7,7.2177]
[1764613859399,0.06101216,124.75,124.69,68.86]
[1764613859894,0.06101216,124.75,124.68,9.91429636]
[1764613860094,0.06101216,124.75,124.68,112.2869]
[1764613860894,0.06101216,124.75,124.68,181.1669]
[1764613861200,0.06101216,124.75,124.67,112.3]
[1764613861396,0.0599189,124.72,124.67,112.3]
[1764613862305,0.0599189,124.72,124.69,7.2178]
[1764613862491,0.0599189,124.72,124.66,181.1875]
[1764613862691,0.0599189,124.72,124.66,112.3075]
[1764613863391,0.0599189,124.72,124.63,208.4572]
[1764613863592,112.2658,124.72,124.62,112.3433]
[1764613863794,0.05981421,124.69,124.61,68.88]
[1764613863994,0.0522279,124.66,124.61,76.1026]
[1764613864301,0.0522279,124.66,124.57,112.3894]
[1764613864501,0.05605389,124.63,124.57,112.3894]
[1764613864700,7.27825389,124.63,124.55,7.2259]
[1764613865001,7.27825389,124.63,124.52,112.4364]
[1764613865002,0.06003904,124.6,124.52,112.4364]
[1764613865194,119.85844379,124.63,124.52,112.4364]
[1764613865195,0.05096307,124.57,124.52,112.4364]
[1764613865498,0.05096307,124.57,124.49,112.4596]
[1764613865499,7.56680686,124.57,124.49,112.4596]
[1764613865691,0.05627233,124.54,124.49,112.4596]
[1764613865892,0.05627233,124.54,124.48,68.9]
[1764613869590,0.05627233,124.54,124.45,112.497]
[1764613869898,0.05643634,124.51,124.45,112.497]
[1764613870799,0.05643634,124.51,124.46,7.2313]
[1764613870998,0.05643634,124.51,124.46,119.7245]
[1764613871705,0.05643634,124.51,124.46,7.2313]
[1764613872700,0.05643634,124.51,124.44,76.2126]
[1764613873009,0.05643634,124.51,124.44,76.2526]
[1764613873501,7.28553634,124.51,124.44,69.02]
[1764613875610,112.4578,124.5,124.4,188.8173]
[1764613875803,0.06018583,124.46,124.4,76.2749]
[1764613876002,0.06018583,124.46,124.4,7.2349]
[1764613876199,0.06018583,124.46,124.41,7.2344]
[1764613876909,0.06018583,124.46,124.39,7.2356]
[1764613877111,0.06018583,124.46,124.36,112.5842]
[1764613877315,0.06015957,124.42,124.36,112.5842]
[1764613877504,0.06015957,124.42,124.38,7.2361]
[1764613877704,0.06015957,124.42,124.34,181.6338]
[1764613877904,0.05120302,124.39,124.34,181.6338]
[1764613878107,0.05120302,124.39,124.33,7.2387]
[1764613878602,0.05120302,124.39,124.32,117.64505442]
[1764613878803,0.05120302,124.39,124.35,112.5929]
[1764613879008,0.05120302,124.39,124.36,112.5827]
[1764613879205,0.05120302,124.39,124.37,112.5742]
[1764613879403,0.05120302,124.39,124.37,7.2366]
[1764613883518,0.05120302,124.39,124.35,76.458]
[1764613883719,0.05120302,124.39,124.35,7.238]
[1764613887221,0.05120302,124.39,124.34,7.2386]
[1764613887716,7.237,124.37,124.32,5.03045442]
[1764613887908,0.05091614,124.36,124.32,5.03045442]
[1764613890221,7.28861614,124.36,124.32,5.03045442]
[1764613890721,0.05091614,124.36,124.32,5.03045442]
[1764613892425,0.05091614,124.36,124.32,12.27025442]
[1764613892625,0.05091614,124.36,124.33,112.6108]
[1764613892825,120.01464379,124.46,124.33,112.6108]
[1764613892826,120.01464379,124.46,124.34,112.5975]
[1764613893123,112.5235,124.43,124.32,5.03045442]
[1764613893319,112.5303,124.42,124.33,69.26]
[1764613893523,7.2353,124.4,124.33,69.26]
[1764613893724,7.2353,124.4,124.35,0.05091614]
[1764613893725,0.05215872,124.38,124.35,0.05091614]
[1764613894622,7.28865872,124.38,124.35,0.05091614]
[1764613895323,7.237,124.37,124.35,0.05091614]
[1764613898632,0.05215872,124.38,124.35,0.05091614]
[1764613900628,112.4898,124.47,124.4,7.2351]
[1764613901129,115.43092679,124.47,124.4,7.2351]
[1764613901624,0.05675823,124.45,124.42,0.05960986]
[1764613905335,3.01851996,124.45,124.42,0.05960986]
[1764613905525,0.05675823,124.45,124.42,0.05960986]
[1764613905725,3.01851996,124.45,124.42,0.05960986]
[1764613906032,3.01851996,124.45,124.37,7.2364]
[1764613906229,2.96176173,124.44,124.37,7.2364]
[1764613906434,2.96176173,124.43,124.37,7.2364]
[1764613906735,10.19426173,124.45,124.39,7.2357]
[1764613906933,2.96176173,124.44,124.39,7.2357]
[1764613907130,3.0230419,124.43,124.4,0.043465]
[1764613907336,2.96176173,124.42,124.4,0.043465]
[1764613907536,2.96176173,124.41,124.4,0.043465]
[1764613909033,2.96176173,124.41,124.37,7.2364]
[1764613909232,2.96176173,124.4,124.37,7.2364]
[1764613909432,112.5095,124.45,124.37,7.2364]
[1764613909433,2.96176173,124.39,124.37,7.2364]
[1764613909638,2.96176173,124.38,124.37,7.2364]
[1764613910038,0.05277998,124.39,124.37,7.2364]
[1764613910231,0.05868475,124.39,124.37,7.2364]
[1764613913148,0.05868475,124.39,124.36,7.2375]
[1764613913342,2.85437919,124.38,124.36,7.2375]
[1764613913540,0.05868475,124.39,124.33,69.24]
[1764613913736,2.85495977,124.38,124.33,69.24]
[1764613913942,0.05868475,124.39,124.33,69.24]
[1764613914137,2.85481104,124.38,124.33,69.24]
[1764613914442,2.85629991,124.37,124.32,5.03045442]
[1764613914643,2.91337398,124.36,124.32,5.03045442]
[1764613914943,0.05707407,124.36,124.32,5.03045442]
[1764613915243,0.05707407,124.36,124.34,7.2387]
[1764613915651,0.05707407,124.36,124.35,7.2381]
[1764613915942,2.91554857,124.36,124.35,7.2381]
[1764613916148,0.05707407,124.36,124.35,7.2381]
[1764613919538,0.05707407,124.36,124.35,76.4581]
[1764613919852,2.82410874,124.4,124.35,181.8104]
[1764613920149,2.82410874,124.39,124.35,181.8104]
[1764613920350,7.47937612,124.43,124.35,181.8104]
[1764613920646,2.82655539,124.42,124.35,181.8104]
[1764613920848,0.05131081,124.4,124.37,0.05464439]
[1764613921044,2.82655539,124.39,124.37,0.05464439]
[1764613921239,0.05131081,124.4,124.38,7.236]
[1764613921443,2.83034543,124.39,124.38,7.236]
[1764613921846,0.05131081,124.4,124.39,7.2358]
[1764613922152,2.88216348,124.4,124.39,7.2358]
[1764613922341,0.05131081,124.4,124.39,7.2358]
[1764613923146,0.05131081,124.4,124.37,7.29124439]
[1764613924336,0.05131081,124.4,124.38,7.236]
[1764613926246,0.05131081,124.4,124.39,7.2358]
[1764613930949,2.67692719,124.47,124.39,112.5545]
[1764613931248,84.0,124.48,124.4,69.2]
[1764613931453,7.2311,124.47,124.43,7.2332]
[1764613931655,2.67692719,124.49,124.41,112.5372]
[1764613931850,0.05780094,124.46,124.44,0.05240905]
[1764613932041,0.05458319,124.46,124.44,0.05240905]
[1764613932247,0.05458319,124.46,124.44,7.28470905]
[1764613932446,0.05458319,124.46,124.44,0.05240905]
[1764613933849,0.05458319,124.46,124.44,7.28520905]
[1764613934049,0.05458319,124.46,124.44,0.05240905]
[1764613934563,0.05458319,124.46,124.45,7.2323]
[1764613934854,0.05458319,124.46,124.44,0.05240905]
[1764613935044,0.05458319,124.46,124.44,7.28520905]
[1764613935245,7.2323,124.45,124.44,0.05240905]
[1764613935659,7.2323,124.45,124.4,76.4151]
[1764613936657,7.2323,124.45,124.41,0.05597583]
[1764613936955,7.2323,124.45,124.41,7.29047583]
[1764613939057,7.28628319,124.46,124.42,7.234]
[1764613940346,7.28628319,124.46,124.43,7.2334]
[1764613940868,0.05458319,124.46,124.43,69.16]
[1764613941555,0.05458319,124.46,124.44,7.2327]
[1764613941756,0.05458319,124.46,124.44,0.05597583]
[1764613943058,0.05458319,124.46,124.45,7.2323]
[1764613944460,7.2296,124.5,124.46,7.2315]
[1764613945553,0.05790874,124.49,124.47,0.05420836]
[1764613951265,0.05790874,124.49,124.48,76.3505]
[1764613953568,84.0,124.55,124.5,7.229]
[1764613954470,0.0548837,124.54,124.51,0.05711637]
[1764613954871,0.0548837,124.54,124.51,7.28581637]
[1764613955063,0.0548837,124.54,124.51,0.05711637]
[1764613955470,7.2819837,124.54,124.51,0.05711637]
[1764613958367,0.0548837,124.54,124.51,0.05711637]
[1764613958973,7.2819837,124.54,124.51,0.05711637]
[1764613959469,0.0548837,124.54,124.51,7.28581637]
[1764613962478,7.2822837,124.54,124.51,0.05711637]
[1764613963070,7.2277,124.53,124.51,0.05711637]
[1764613964982,0.0548837,124.54,124.51,0.05711637]
[1764613966482,7.2282,124.52,124.51,0.05711637]
[1764613968883,7.2819837,124.54,124.51,0.05711637]
[1764613969885,0.0548837,124.54,124.51,7.28581637]
[1764613971979,0.0548837,124.54,124.51,0.05711637]
[1764613973195,0.0548837,124.54,124.52,69.06]
[1764613973384,0.0548837,124.54,124.53,7.2276]
[1764613973579,0.0548837,124.54,124.52,69.06]
[1764613973580,84.0,124.61,124.52,181.4954]
[1764613973784,2.70754343,124.62,124.53,112.4258]
[1764613973984,7.54584094,124.63,124.53,112.4258]
[1764613974291,7.2224,124.62,124.54,112.4175]
[1764613974589,199.0413563,124.64,124.53,112.4258]
[1764613974792,0.05159991,124.59,124.57,0.06056425]
[1764613974986,0.0542288,124.59,124.57,0.06056425]
[1764613976480,7.2784288,124.59,124.57,0.06056425]
[1764613976686,0.0542288,124.59,124.57,0.06056425]
[1764613976891,0.0542288,124.59,124.51,69.08]
[1764613976892,7.2259,124.56,124.51,7.2286]
[1764613977886,0.05069498,124.55,124.52,0.05815431]
[1764613979289,0.05069498,124.55,124.52,7.28625431]
[1764613979794,0.05069498,124.55,124.53,7.2276]
[1764613980392,0.05069498,124.55,124.52,0.05815431]
[1764613981393,0.05069498,124.55,124.52,69.11815431]
[1764613982399,0.05069498,124.55,124.53,7.2276]
[1764613983287,0.05069498,124.55,124.52,69.11815431]
[1764613984489,0.05069498,124.55,124.54,7.227]
[1764613984690,84.0,124.62,124.53,112.4258]
[1764613984893,14.97308564,124.66,124.55,112.4079]
[1764613985186,7.2225,124.62,124.58,7.2243]
[1764613985386,112.3498,124.62,124.54,69.08]
[1764613985592,0.05316387,124.59,124.57,0.0543817]
[1764613986290,7.27736387,124.59,124.57,0.0543817]
[1764613987088,7.2247,124.58,124.57,0.0543817]
[1764613987489,8.8247,124.58,124.57,0.0543817]
[1764613987893,7.2247,124.58,124.57,0.0543817]
[1764613989504,7.27736387,124.59,124.57,0.0543817]
[1764613989904,0.05316387,124.59,124.57,0.0543817]
[1764613990104,7.2247,124.58,124.57,0.0543817]
[1764613991899,0.05316387,124.59,124.57,0.0543817]
[1764613992303,7.2247,124.58,124.57,0.0543817]
[1764613995503,0.05316387,124.59,124.57,0.0543817]
[1764613996401,3.09456068,124.58,124.57,0.0543817]
[1764613996609,10.31926068,124.58,124.57,0.0543817]
[1764613999207,117.08666068,124.58,124.48,13.00885704]
[1764613999409,3.09456068,124.55,124.47,78.99429636]
[1764613999906,3.09456068,124.55,124.5,7.2288]
[1764614000210,115.10638239,124.58,124.51,7.2285]
[1764614000404,0.0508843,124.54,124.51,7.28202602]
[1764614004013,7.2784843,124.54,124.51,0.05352602]
[1764614004406,0.0508843,124.54,124.51,0.05352602]
[1764614006914,7.2781843,124.54,124.51,0.05352602]
[1764614008513,10.32256068,124.53,124.51,0.05352602]
[1764614012413,0.0508843,124.54,124.51,0.05352602]
[1764614017223,3.09456068,124.53,124.51,0.05352602]
[1764614018017,0.0508843,124.54,124.51,0.05352602]
[1764614018917,0.0508843,124.54,124.51,7.28222602]
[1764614019521,0.0508843,124.54,124.52,7.2281]
[1764614026525,3.14544498,124.54,124.51,0.05352602]
[1764614027519,0.0508843,124.54,124.51,0.05352602]
[1764614028122,0.0508843,124.54,124.52,7.2276]
[1764614029031,0.0508843,124.54,124.53,7.2276]
[1764614032632,5.81256619,124.59,124.55,7.2263]
[1764614032938,156.15456068,124.6,124.55,7.2263]
[1764614033136,163.37816068,124.6,124.55,7.2263]
[1764614033338,7.45365203,124.63,124.55,112.4102]
[1764614033524,3.09456068,124.62,124.56,69.06]
[1764614033730,0.05280881,124.6,124.58,0.05944723]
[1764614035240,3.14736949,124.6,124.58,0.05944723]
[1764614035444,4.74736949,124.6,124.51,9.91429636]
[1764614035636,3.09456068,124.57,124.52,69.06]
[1764614035836,115.06657025,124.61,124.52,69.06]
[1764614036140,3.09456068,124.58,124.52,69.06]
[1764614036341,0.05544097,124.56,124.54,0.05133919]
[1764614037338,0.05544097,124.56,124.54,7.27823919]
[1764614038741,0.05544097,124.56,124.54,0.05133919]
[1764614040041,0.05544097,124.56,124.54,7.27833919]
[1764614040542,7.19653219,124.64,124.56,112.4033]
[1764614040840,3.09456068,124.64,124.57,69.04]
[1764614041546,0.05746897,124.62,124.59,7.28439343]
[1764614041940,0.05746897,124.62,124.6,7.2235]
[1764614042948,3.15202965,124.62,124.59,0.06029343]
[1764614043741,3.09456068,124.6,124.53,69.04]
[1764614044042,3.09456068,124.58,124.52,181.4747]
[1764614044644,10.31876068,124.59,124.55,7.2263]
[1764614044846,0.06166008,124.58,124.56,0.05452739]
[1764614049645,84.06166008,124.58,124.56,0.05452739]
[1764614049849,4.8345,124.57,124.49,191.41339636]
[1764614050052,4.8345,124.57,124.49,181.4991]
[1764614050357,7.2259,124.56,124.51,7.2288]
[1764614050849,0.05142878,124.55,124.52,0.05898425]
[1764614053457,4.88592878,124.55,124.47,69.04]
[1764614053657,86.69479813,124.56,124.47,69.04]
[1764614053853,7.2267,124.55,124.49,7.2299]
[1764614054048,86.69479813,124.56,124.49,7.2299]
[1764614054355,7.28809472,124.54,124.51,0.03217346]
[1764614055357,0.06089472,124.54,124.51,7.26077346]
[1764614056450,0.06089472,124.54,124.51,0.03217346]
[1764614056849,7.28809472,124.54,124.51,0.03217346]
[1764614057057,0.06089472,124.54,124.51,0.03217346]
[1764614057650,0.06089472,124.54,124.53,7.2276]
[1764614061958,7.44536198,124.63,124.52,69.04]
[1764614062162,2.72980973,124.63,124.56,7.2254]
[1764614062360,2.72980973,124.63,124.56,69.04]
[1764614062660,86.72980973,124.64,124.56,69.04]
[1764614062854,7.2221,124.63,124.57,7.2247]
[1764614063052,0.05682249,124.61,124.59,0.05187467]
[1764614066264,7.28002249,124.61,124.59,0.05187467]
[1764614070162,7.2236,124.6,124.59,0.05187467]
[1764614071471,7.2242,124.59,124.54,7.2268]
[1764614072571,0.05113952,124.58,124.55,0.04119351]
[1764614075074,0.05113952,124.58,124.55,7.26739351]
[1764614075975,0.05113952,124.58,124.55,112.44989351]
[1764614076273,0.05113952,124.58,124.55,0.04119351]
[1764614077175,0.05113952,124.58,124.56,7.2254]
[1764614078271,0.05113952,124.58,124.57,7.2253]
[1764614083475,0.05113952,124.58,124.55,76.28709351]
[1764614084076,0.05113952,124.58,124.56,7.2258]
[1764614087681,7.27593952,124.58,124.55,0.04119351]
[1764614087876,0.05113952,124.58,124.55,0.04119351]
[1764614089080,7.2254,124.57,124.55,0.04119351]
[1764614089488,0.05113952,124.58,124.55,0.04119351]
[1764614089692,4.8345,124.56,124.48,9.91429636]
[1764614089897,4.8345,124.56,124.48,69.02]
[1764614090197,7.56430973,124.56,124.48,69.02]
[1764614090586,0.05353956,124.53,124.48,69.02]
[1764614090786,0.05353956,124.53,124.49,7.2299]
[1764614090983,0.05353956,124.53,124.48,69.02]
[1764614092498,0.05353956,124.53,124.48,76.2505]
[1764614092700,0.05353956,124.53,124.48,69.02]
[1764614094293,7.2291,124.51,124.48,69.02]
[1764614094496,7.2291,124.51,124.45,69.04]
[1764614094698,0.06060645,124.49,124.45,69.04]
[1764614096393,0.06060645,124.49,124.46,7.2317]
[1764614097596,0.06060645,124.49,124.45,69.04]
[1764614098005,7.29080645,124.49,124.45,69.04]
[1764614100496,0.06060645,124.49,124.46,7.2316]
[1764614100702,0.06060645,124.49,124.45,69.04]
[1764614101100,7.29080645,124.49,124.41,122.44449636]
[1764614101299,0.05690892,124.46,124.42,69.04]
[1764614102207,0.05690892,124.46,124.44,7.2327]
[1764614102605,0.05690892,124.46,124.41,112.5302]
[1764614102606,0.05690892,124.46,124.42,69.06]
[1764614102803,0.05690892,124.46,124.43,7.2333]
[1764614104310,0.05690892,124.46,124.41,69.06]
[1764614105010,0.05690892,124.46,124.4,69.06]
[1764614105401,7.28880892,124.46,124.42,7.2337]
[1764614106714,0.05690892,124.46,124.43,7.2333]
[1764614106907,0.05690892,124.46,124.41,112.5386]
[1764614108419,0.05690892,124.46,124.44,7.2328]
[1764614112824,0.05690892,124.46,124.42,112.5287]
[1764614113721,0.05690892,124.46,124.43,3.09922532]
[1764614113913,0.05690892,124.46,124.44,69.08]
[1764614114122,0.05690892,124.46,124.45,7.2323]
[1764614118328,87.09922532,124.56,124.47,115.58342532]
[1764614118521,87.09922532,124.56,124.48,69.08]
[1764614119227,0.05761264,124.53,124.51,0.05690892]
[1764614119422,0.05761264,124.53,124.44,3.09922532]
[1764614119628,3.09922532,124.52,124.45,69.08]
[1764614120329,7.2291,124.51,124.47,7.2311]
[1764614120523,0.06056696,124.5,124.47,7.2311]
[1764614122425,0.06056696,124.5,124.46,115.59222532]
[1764614122634,0.06056696,124.5,124.47,112.4829]
[1764614123243,0.06056696,124.5,124.48,7.2305]
[1764614125832,0.06056696,124.5,124.49,7.23]
[1764614128431,0.06056696,124.5,124.47,76.2906]